Workbook

Sheet FORMULACIÓN
F2: FORMULACIÓN PLAN DE ACCIÓN | R2: Código: DE01-F03
R3: Versión: 15
R4: Fecha: 2022-12-12
B6: VIGENCIA: | E6: 2023 | K6: ÁREA:
B8: ∑ PART. % PRODUCTOS | E8: =SUMIF(B24:B402,"Producto ",L24:L402) -> 0 | K8: ÁREA Y/O DEPENDENCIA RESPONSABLE:
K10: FICHA: | N10: =IF(ISERROR(VLOOKUP(N8,LISTAS!$A$15:$B$50,2,0)),"",VLOOKUP(N8,LISTAS!$A$15:$B$50,2,0)) -> 
B12: Vo.Bo. REVISIÓN OAP | F12: APROBACIÓN JEFE OFICINA DE PLANEACIÓN | K12: FIRMAS ÁREAS/DEPENDENCIAS RESPONSABLES DE LA FICHA | P12: AUTORIZACION OTRAS DEPENDENCIAS RESPONSABLES DE LA EJECUCIÓN DE ACTIVIDADES
L13: 1° Nivel | M13: 2° Nivel | N13: 3° Nivel | P13: DEPENDENCIA | Q13: NOMBRE | R13: FIRMA
B14: Nombre: | F14: Nombre: | K14: Nombre:
B16: Firma: | F16: Firma: | K16: Firma:
B18: Cargo: | F18: Fecha Aprobación: | K18: Cargo:
B22: IMPORTANTE: Este formato debe ser diligenciado en archivo Excel. Las instrucciones de diligenciamiento se habilitan al ubicar el cursor en cada una de las celdas del encabezado. Para su diligenciamiento se sugiere consultar también el procedimiento DE01-P01 "FORMULACIÓN DE LA PLANEACIÓN INSTITUCIONAL".
B23: Ident. Fila | C23: Código | D23: Categoría | E23: Estrategia | F23: Insumo de planeación del que se extrajo el producto | G23: ¿Es producto compartido con otras áreas? | H23: Fuente de Financiación | I23: Política(s) MIPG | J23: Asociación a planes | K23: Producto o Actividad | L23: Part. % | M23: Meta | N23: Unidad de medida (Meta) | O23: Fórmula para determinar % de Avance | P23: Fecha Inicio | Q23: Fecha Final | R23: Áreas/ Dependencias responsables de la ejecución de actividades
C24: =_xlfn.IFS(B24="Producto ",$N$10&"-"&T25,B24="Actividad Propia",$N$10&"-"&T24&"-"&V24,B24="Actividad sin participación",$N$10&"-"&T24&"-"&V24,B24="","") ->  | T24: =IF(B24="Producto ",1) -> FALSE
C25: =_xlfn.IFS(B25="Producto ",$N$10&"-"&T26,B25="Actividad Propia",$N$10&"-"&T25&"-"&V25,B25="Actividad sin participación",$N$10&"-"&T25&"-"&V25,B25="","") ->  | T25: =COUNTIFS($B$24:B25,"Producto ") -> 0 | U25: =IF(B24="Producto ",C24&"-"&V25) -> FALSE | V25: =IF(B24="Producto ",1,V24+1) -> 1
C26: =_xlfn.IFS(B26="Producto ",$N$10&"-"&T27,B26="Actividad Propia",$N$10&"-"&T26&"-"&V26,B26="Actividad sin participación",$N$10&"-"&T26&"-"&V26,B26="","") ->  | T26: =COUNTIFS($B$24:B26,"Producto ") -> 0 | U26: FALSE | V26: 2
C27: =_xlfn.IFS(B27="Producto ",$N$10&"-"&T28,B27="Actividad Propia",$N$10&"-"&T27&"-"&V27,B27="Actividad sin participación",$N$10&"-"&T27&"-"&V27,B27="","") ->  | T27: =COUNTIFS($B$24:B27,"Producto ") -> 0 | U27: FALSE | V27: 3
C28: =_xlfn.IFS(B28="Producto ",$N$10&"-"&T29,B28="Actividad Propia",$N$10&"-"&T28&"-"&V28,B28="Actividad sin participación",$N$10&"-"&T28&"-"&V28,B28="","") ->  | T28: =COUNTIFS($B$24:B28,"Producto ") -> 0 | U28: FALSE | V28: 4
C29: =_xlfn.IFS(B29="Producto ",$N$10&"-"&T30,B29="Actividad Propia",$N$10&"-"&T29&"-"&V29,B29="Actividad sin participación",$N$10&"-"&T29&"-"&V29,B29="","") ->  | T29: =COUNTIFS($B$24:B29,"Producto ") -> 0 | U29: FALSE | V29: 5
C30: =_xlfn.IFS(B30="Producto ",$N$10&"-"&T31,B30="Actividad Propia",$N$10&"-"&T30&"-"&V30,B30="Actividad sin participación",$N$10&"-"&T30&"-"&V30,B30="","") ->  | T30: =COUNTIFS($B$24:B30,"Producto ") -> 0 | U30: FALSE | V30: 6
C31: =_xlfn.IFS(B31="Producto ",$N$10&"-"&T32,B31="Actividad Propia",$N$10&"-"&T31&"-"&V31,B31="Actividad sin participación",$N$10&"-"&T31&"-"&V31,B31="","") ->  | T31: =COUNTIFS($B$24:B31,"Producto ") -> 0 | U31: FALSE | V31: 7
C32: =_xlfn.IFS(B32="Producto ",$N$10&"-"&T33,B32="Actividad Propia",$N$10&"-"&T32&"-"&V32,B32="Actividad sin participación",$N$10&"-"&T32&"-"&V32,B32="","") ->  | T32: =COUNTIFS($B$24:B32,"Producto ") -> 0 | U32: FALSE | V32: 8
C33: =_xlfn.IFS(B33="Producto ",$N$10&"-"&T34,B33="Actividad Propia",$N$10&"-"&T33&"-"&V33,B33="Actividad sin participación",$N$10&"-"&T33&"-"&V33,B33="","") ->  | T33: =COUNTIFS($B$24:B33,"Producto ") -> 0 | U33: FALSE | V33: 9
C34: =_xlfn.IFS(B34="Producto ",$N$10&"-"&T35,B34="Actividad Propia",$N$10&"-"&T34&"-"&V34,B34="Actividad sin participación",$N$10&"-"&T34&"-"&V34,B34="","") ->  | T34: =COUNTIFS($B$24:B34,"Producto ") -> 0 | U34: FALSE | V34: 10
C35: =_xlfn.IFS(B35="Producto ",$N$10&"-"&T36,B35="Actividad Propia",$N$10&"-"&T35&"-"&V35,B35="Actividad sin participación",$N$10&"-"&T35&"-"&V35,B35="","") ->  | T35: =COUNTIFS($B$24:B35,"Producto ") -> 0 | U35: FALSE | V35: 11
C36: =_xlfn.IFS(B36="Producto ",$N$10&"-"&T37,B36="Actividad Propia",$N$10&"-"&T36&"-"&V36,B36="Actividad sin participación",$N$10&"-"&T36&"-"&V36,B36="","") ->  | T36: =COUNTIFS($B$24:B36,"Producto ") -> 0 | U36: FALSE | V36: 12
C37: =_xlfn.IFS(B37="Producto ",$N$10&"-"&T38,B37="Actividad Propia",$N$10&"-"&T37&"-"&V37,B37="Actividad sin participación",$N$10&"-"&T37&"-"&V37,B37="","") ->  | T37: =COUNTIFS($B$24:B37,"Producto ") -> 0 | U37: FALSE | V37: 13
C38: =_xlfn.IFS(B38="Producto ",$N$10&"-"&T39,B38="Actividad Propia",$N$10&"-"&T38&"-"&V38,B38="Actividad sin participación",$N$10&"-"&T38&"-"&V38,B38="","") ->  | T38: =COUNTIFS($B$24:B38,"Producto ") -> 0 | U38: FALSE | V38: 14
C39: =_xlfn.IFS(B39="Producto ",$N$10&"-"&T40,B39="Actividad Propia",$N$10&"-"&T39&"-"&V39,B39="Actividad sin participación",$N$10&"-"&T39&"-"&V39,B39="","") ->  | T39: =COUNTIFS($B$24:B39,"Producto ") -> 0 | U39: FALSE | V39: 15
C40: =_xlfn.IFS(B40="Producto ",$N$10&"-"&T41,B40="Actividad Propia",$N$10&"-"&T40&"-"&V40,B40="Actividad sin participación",$N$10&"-"&T40&"-"&V40,B40="","") ->  | T40: =COUNTIFS($B$24:B40,"Producto ") -> 0 | U40: FALSE | V40: 16
C41: =_xlfn.IFS(B41="Producto ",$N$10&"-"&T42,B41="Actividad Propia",$N$10&"-"&T41&"-"&V41,B41="Actividad sin participación",$N$10&"-"&T41&"-"&V41,B41="","") ->  | T41: =COUNTIFS($B$24:B41,"Producto ") -> 0 | U41: FALSE | V41: 17
C42: =_xlfn.IFS(B42="Producto ",$N$10&"-"&T43,B42="Actividad Propia",$N$10&"-"&T42&"-"&V42,B42="Actividad sin participación",$N$10&"-"&T42&"-"&V42,B42="","") ->  | T42: =COUNTIFS($B$24:B42,"Producto ") -> 0 | U42: FALSE | V42: 18
C43: =_xlfn.IFS(B43="Producto ",$N$10&"-"&T44,B43="Actividad Propia",$N$10&"-"&T43&"-"&V43,B43="Actividad sin participación",$N$10&"-"&T43&"-"&V43,B43="","") ->  | T43: =COUNTIFS($B$24:B43,"Producto ") -> 0 | U43: FALSE | V43: 19
C44: =_xlfn.IFS(B44="Producto ",$N$10&"-"&T45,B44="Actividad Propia",$N$10&"-"&T44&"-"&V44,B44="Actividad sin participación",$N$10&"-"&T44&"-"&V44,B44="","") ->  | T44: =COUNTIFS($B$24:B44,"Producto ") -> 0 | U44: FALSE | V44: 20
C45: =_xlfn.IFS(B45="Producto ",$N$10&"-"&T46,B45="Actividad Propia",$N$10&"-"&T45&"-"&V45,B45="Actividad sin participación",$N$10&"-"&T45&"-"&V45,B45="","") ->  | T45: =COUNTIFS($B$24:B45,"Producto ") -> 0 | U45: FALSE | V45: 21
C46: =_xlfn.IFS(B46="Producto ",$N$10&"-"&T47,B46="Actividad Propia",$N$10&"-"&T46&"-"&V46,B46="Actividad sin participación",$N$10&"-"&T46&"-"&V46,B46="","") ->  | T46: =COUNTIFS($B$24:B46,"Producto ") -> 0 | U46: FALSE | V46: 22
C47: =_xlfn.IFS(B47="Producto ",$N$10&"-"&T48,B47="Actividad Propia",$N$10&"-"&T47&"-"&V47,B47="Actividad sin participación",$N$10&"-"&T47&"-"&V47,B47="","") ->  | T47: =COUNTIFS($B$24:B47,"Producto ") -> 0 | U47: FALSE | V47: 23
C48: =_xlfn.IFS(B48="Producto ",$N$10&"-"&T49,B48="Actividad Propia",$N$10&"-"&T48&"-"&V48,B48="Actividad sin participación",$N$10&"-"&T48&"-"&V48,B48="","") ->  | T48: =COUNTIFS($B$24:B48,"Producto ") -> 0 | U48: FALSE | V48: 24
C49: =_xlfn.IFS(B49="Producto ",$N$10&"-"&T50,B49="Actividad Propia",$N$10&"-"&T49&"-"&V49,B49="Actividad sin participación",$N$10&"-"&T49&"-"&V49,B49="","") ->  | T49: =COUNTIFS($B$24:B49,"Producto ") -> 0 | U49: FALSE | V49: 25
C50: =_xlfn.IFS(B50="Producto ",$N$10&"-"&T51,B50="Actividad Propia",$N$10&"-"&T50&"-"&V50,B50="Actividad sin participación",$N$10&"-"&T50&"-"&V50,B50="","") ->  | T50: =COUNTIFS($B$24:B50,"Producto ") -> 0 | U50: FALSE | V50: 26
C51: =_xlfn.IFS(B51="Producto ",$N$10&"-"&T52,B51="Actividad Propia",$N$10&"-"&T51&"-"&V51,B51="Actividad sin participación",$N$10&"-"&T51&"-"&V51,B51="","") ->  | T51: =COUNTIFS($B$24:B51,"Producto ") -> 0 | U51: FALSE | V51: 27
C52: =_xlfn.IFS(B52="Producto ",$N$10&"-"&T53,B52="Actividad Propia",$N$10&"-"&T52&"-"&V52,B52="Actividad sin participación",$N$10&"-"&T52&"-"&V52,B52="","") ->  | T52: =COUNTIFS($B$24:B52,"Producto ") -> 0 | U52: FALSE | V52: 28
C53: =_xlfn.IFS(B53="Producto ",$N$10&"-"&T54,B53="Actividad Propia",$N$10&"-"&T53&"-"&V53,B53="Actividad sin participación",$N$10&"-"&T53&"-"&V53,B53="","") ->  | T53: =COUNTIFS($B$24:B53,"Producto ") -> 0 | U53: FALSE | V53: 29
C54: =_xlfn.IFS(B54="Producto ",$N$10&"-"&T55,B54="Actividad Propia",$N$10&"-"&T54&"-"&V54,B54="Actividad sin participación",$N$10&"-"&T54&"-"&V54,B54="","") ->  | T54: =COUNTIFS($B$24:B54,"Producto ") -> 0 | U54: FALSE | V54: 30
C55: =_xlfn.IFS(B55="Producto ",$N$10&"-"&T56,B55="Actividad Propia",$N$10&"-"&T55&"-"&V55,B55="Actividad sin participación",$N$10&"-"&T55&"-"&V55,B55="","") ->  | T55: =COUNTIFS($B$24:B55,"Producto ") -> 0 | U55: FALSE | V55: 31
C56: =_xlfn.IFS(B56="Producto ",$N$10&"-"&T57,B56="Actividad Propia",$N$10&"-"&T56&"-"&V56,B56="Actividad sin participación",$N$10&"-"&T56&"-"&V56,B56="","") ->  | T56: =COUNTIFS($B$24:B56,"Producto ") -> 0 | U56: FALSE | V56: 32
C57: =_xlfn.IFS(B57="Producto ",$N$10&"-"&T58,B57="Actividad Propia",$N$10&"-"&T57&"-"&V57,B57="Actividad sin participación",$N$10&"-"&T57&"-"&V57,B57="","") ->  | T57: =COUNTIFS($B$24:B57,"Producto ") -> 0 | U57: FALSE | V57: 33
C58: =_xlfn.IFS(B58="Producto ",$N$10&"-"&T59,B58="Actividad Propia",$N$10&"-"&T58&"-"&V58,B58="Actividad sin participación",$N$10&"-"&T58&"-"&V58,B58="","") ->  | T58: =COUNTIFS($B$24:B58,"Producto ") -> 0 | U58: FALSE | V58: 34
C59: =_xlfn.IFS(B59="Producto ",$N$10&"-"&T60,B59="Actividad Propia",$N$10&"-"&T59&"-"&V59,B59="Actividad sin participación",$N$10&"-"&T59&"-"&V59,B59="","") ->  | T59: =COUNTIFS($B$24:B59,"Producto ") -> 0 | U59: FALSE | V59: 35
C60: =_xlfn.IFS(B60="Producto ",$N$10&"-"&T61,B60="Actividad Propia",$N$10&"-"&T60&"-"&V60,B60="Actividad sin participación",$N$10&"-"&T60&"-"&V60,B60="","") ->  | T60: =COUNTIFS($B$24:B60,"Producto ") -> 0 | U60: FALSE | V60: 36
C61: =_xlfn.IFS(B61="Producto ",$N$10&"-"&T62,B61="Actividad Propia",$N$10&"-"&T61&"-"&V61,B61="Actividad sin participación",$N$10&"-"&T61&"-"&V61,B61="","") ->  | T61: =COUNTIFS($B$24:B61,"Producto ") -> 0 | U61: FALSE | V61: 37
C62: =_xlfn.IFS(B62="Producto ",$N$10&"-"&T63,B62="Actividad Propia",$N$10&"-"&T62&"-"&V62,B62="Actividad sin participación",$N$10&"-"&T62&"-"&V62,B62="","") ->  | T62: =COUNTIFS($B$24:B62,"Producto ") -> 0 | U62: FALSE | V62: 38
C63: =_xlfn.IFS(B63="Producto ",$N$10&"-"&T64,B63="Actividad Propia",$N$10&"-"&T63&"-"&V63,B63="Actividad sin participación",$N$10&"-"&T63&"-"&V63,B63="","") ->  | T63: =COUNTIFS($B$24:B63,"Producto ") -> 0 | U63: FALSE | V63: 39
C64: =_xlfn.IFS(B64="Producto ",$N$10&"-"&T65,B64="Actividad Propia",$N$10&"-"&T64&"-"&V64,B64="Actividad sin participación",$N$10&"-"&T64&"-"&V64,B64="","") ->  | T64: =COUNTIFS($B$24:B64,"Producto ") -> 0 | U64: FALSE | V64: 40
C65: =_xlfn.IFS(B65="Producto ",$N$10&"-"&T66,B65="Actividad Propia",$N$10&"-"&T65&"-"&V65,B65="Actividad sin participación",$N$10&"-"&T65&"-"&V65,B65="","") ->  | T65: =COUNTIFS($B$24:B65,"Producto ") -> 0 | U65: FALSE | V65: 41
C66: =_xlfn.IFS(B66="Producto ",$N$10&"-"&T67,B66="Actividad Propia",$N$10&"-"&T66&"-"&V66,B66="Actividad sin participación",$N$10&"-"&T66&"-"&V66,B66="","") ->  | T66: =COUNTIFS($B$24:B66,"Producto ") -> 0 | U66: FALSE | V66: 42
C67: =_xlfn.IFS(B67="Producto ",$N$10&"-"&T68,B67="Actividad Propia",$N$10&"-"&T67&"-"&V67,B67="Actividad sin participación",$N$10&"-"&T67&"-"&V67,B67="","") ->  | T67: =COUNTIFS($B$24:B67,"Producto ") -> 0 | U67: FALSE | V67: 43
C68: =_xlfn.IFS(B68="Producto ",$N$10&"-"&T69,B68="Actividad Propia",$N$10&"-"&T68&"-"&V68,B68="Actividad sin participación",$N$10&"-"&T68&"-"&V68,B68="","") ->  | T68: =COUNTIFS($B$24:B68,"Producto ") -> 0 | U68: FALSE | V68: 44
C69: =_xlfn.IFS(B69="Producto ",$N$10&"-"&T70,B69="Actividad Propia",$N$10&"-"&T69&"-"&V69,B69="Actividad sin participación",$N$10&"-"&T69&"-"&V69,B69="","") ->  | T69: =COUNTIFS($B$24:B69,"Producto ") -> 0 | U69: FALSE | V69: 45
C70: =_xlfn.IFS(B70="Producto ",$N$10&"-"&T71,B70="Actividad Propia",$N$10&"-"&T70&"-"&V70,B70="Actividad sin participación",$N$10&"-"&T70&"-"&V70,B70="","") ->  | T70: =COUNTIFS($B$24:B70,"Producto ") -> 0 | U70: FALSE | V70: 46
C71: =_xlfn.IFS(B71="Producto ",$N$10&"-"&T72,B71="Actividad Propia",$N$10&"-"&T71&"-"&V71,B71="Actividad sin participación",$N$10&"-"&T71&"-"&V71,B71="","") ->  | T71: =COUNTIFS($B$24:B71,"Producto ") -> 0 | U71: FALSE | V71: 47
C72: =_xlfn.IFS(B72="Producto ",$N$10&"-"&T73,B72="Actividad Propia",$N$10&"-"&T72&"-"&V72,B72="Actividad sin participación",$N$10&"-"&T72&"-"&V72,B72="","") ->  | T72: =COUNTIFS($B$24:B72,"Producto ") -> 0 | U72: FALSE | V72: 48
C73: =_xlfn.IFS(B73="Producto ",$N$10&"-"&T74,B73="Actividad Propia",$N$10&"-"&T73&"-"&V73,B73="Actividad sin participación",$N$10&"-"&T73&"-"&V73,B73="","") ->  | T73: =COUNTIFS($B$24:B73,"Producto ") -> 0 | U73: FALSE | V73: 49
C74: =_xlfn.IFS(B74="Producto ",$N$10&"-"&T75,B74="Actividad Propia",$N$10&"-"&T74&"-"&V74,B74="Actividad sin participación",$N$10&"-"&T74&"-"&V74,B74="","") ->  | T74: =COUNTIFS($B$24:B74,"Producto ") -> 0 | U74: FALSE | V74: 50
C75: =_xlfn.IFS(B75="Producto ",$N$10&"-"&T76,B75="Actividad Propia",$N$10&"-"&T75&"-"&V75,B75="Actividad sin participación",$N$10&"-"&T75&"-"&V75,B75="","") ->  | T75: =COUNTIFS($B$24:B75,"Producto ") -> 0 | U75: FALSE | V75: 51
C76: =_xlfn.IFS(B76="Producto ",$N$10&"-"&T77,B76="Actividad Propia",$N$10&"-"&T76&"-"&V76,B76="Actividad sin participación",$N$10&"-"&T76&"-"&V76,B76="","") ->  | T76: =COUNTIFS($B$24:B76,"Producto ") -> 0 | U76: FALSE | V76: 52
C77: =_xlfn.IFS(B77="Producto ",$N$10&"-"&T78,B77="Actividad Propia",$N$10&"-"&T77&"-"&V77,B77="Actividad sin participación",$N$10&"-"&T77&"-"&V77,B77="","") ->  | T77: =COUNTIFS($B$24:B77,"Producto ") -> 0 | U77: FALSE | V77: 53
C78: =_xlfn.IFS(B78="Producto ",$N$10&"-"&T79,B78="Actividad Propia",$N$10&"-"&T78&"-"&V78,B78="Actividad sin participación",$N$10&"-"&T78&"-"&V78,B78="","") ->  | T78: =COUNTIFS($B$24:B78,"Producto ") -> 0 | U78: FALSE | V78: 54
C79: =_xlfn.IFS(B79="Producto ",$N$10&"-"&T80,B79="Actividad Propia",$N$10&"-"&T79&"-"&V79,B79="Actividad sin participación",$N$10&"-"&T79&"-"&V79,B79="","") ->  | T79: =COUNTIFS($B$24:B79,"Producto ") -> 0 | U79: FALSE | V79: 55
C80: =_xlfn.IFS(B80="Producto ",$N$10&"-"&T81,B80="Actividad Propia",$N$10&"-"&T80&"-"&V80,B80="Actividad sin participación",$N$10&"-"&T80&"-"&V80,B80="","") ->  | T80: =COUNTIFS($B$24:B80,"Producto ") -> 0 | U80: FALSE | V80: 56
C81: =_xlfn.IFS(B81="Producto ",$N$10&"-"&T82,B81="Actividad Propia",$N$10&"-"&T81&"-"&V81,B81="Actividad sin participación",$N$10&"-"&T81&"-"&V81,B81="","") ->  | T81: =COUNTIFS($B$24:B81,"Producto ") -> 0 | U81: FALSE | V81: 57
C82: =_xlfn.IFS(B82="Producto ",$N$10&"-"&T83,B82="Actividad Propia",$N$10&"-"&T82&"-"&V82,B82="Actividad sin participación",$N$10&"-"&T82&"-"&V82,B82="","") ->  | T82: =COUNTIFS($B$24:B82,"Producto ") -> 0 | U82: FALSE | V82: 58
C83: =_xlfn.IFS(B83="Producto ",$N$10&"-"&T84,B83="Actividad Propia",$N$10&"-"&T83&"-"&V83,B83="Actividad sin participación",$N$10&"-"&T83&"-"&V83,B83="","") ->  | T83: =COUNTIFS($B$24:B83,"Producto ") -> 0 | U83: FALSE | V83: 59
C84: =_xlfn.IFS(B84="Producto ",$N$10&"-"&T85,B84="Actividad Propia",$N$10&"-"&T84&"-"&V84,B84="Actividad sin participación",$N$10&"-"&T84&"-"&V84,B84="","") ->  | T84: =COUNTIFS($B$24:B84,"Producto ") -> 0 | U84: FALSE | V84: 60
C85: =_xlfn.IFS(B85="Producto ",$N$10&"-"&T86,B85="Actividad Propia",$N$10&"-"&T85&"-"&V85,B85="Actividad sin participación",$N$10&"-"&T85&"-"&V85,B85="","") ->  | T85: =COUNTIFS($B$24:B85,"Producto ") -> 0 | U85: FALSE | V85: 61
C86: =_xlfn.IFS(B86="Producto ",$N$10&"-"&T87,B86="Actividad Propia",$N$10&"-"&T86&"-"&V86,B86="Actividad sin participación",$N$10&"-"&T86&"-"&V86,B86="","") ->  | T86: =COUNTIFS($B$24:B86,"Producto ") -> 0 | U86: FALSE | V86: 62
C87: =_xlfn.IFS(B87="Producto ",$N$10&"-"&T88,B87="Actividad Propia",$N$10&"-"&T87&"-"&V87,B87="Actividad sin participación",$N$10&"-"&T87&"-"&V87,B87="","") ->  | T87: =COUNTIFS($B$24:B87,"Producto ") -> 0 | U87: FALSE | V87: 63
C88: =_xlfn.IFS(B88="Producto ",$N$10&"-"&T89,B88="Actividad Propia",$N$10&"-"&T88&"-"&V88,B88="Actividad sin participación",$N$10&"-"&T88&"-"&V88,B88="","") ->  | T88: =COUNTIFS($B$24:B88,"Producto ") -> 0 | U88: FALSE | V88: 64
C89: =_xlfn.IFS(B89="Producto ",$N$10&"-"&T90,B89="Actividad Propia",$N$10&"-"&T89&"-"&V89,B89="Actividad sin participación",$N$10&"-"&T89&"-"&V89,B89="","") ->  | T89: =COUNTIFS($B$24:B89,"Producto ") -> 0 | U89: =IF(B88="Producto ",C88&"-"&V89) -> FALSE | V89: =IF(B88="Producto ",1,V88+1) -> 65
C90: =_xlfn.IFS(B90="Producto ",$N$10&"-"&T91,B90="Actividad Propia",$N$10&"-"&T90&"-"&V90,B90="Actividad sin participación",$N$10&"-"&T90&"-"&V90,B90="","") ->  | T90: =COUNTIFS($B$24:B90,"Producto ") -> 0 | U90: FALSE | V90: 66
C91: =_xlfn.IFS(B91="Producto ",$N$10&"-"&T92,B91="Actividad Propia",$N$10&"-"&T91&"-"&V91,B91="Actividad sin participación",$N$10&"-"&T91&"-"&V91,B91="","") ->  | T91: =COUNTIFS($B$24:B91,"Producto ") -> 0 | U91: FALSE | V91: 67
C92: =_xlfn.IFS(B92="Producto ",$N$10&"-"&T93,B92="Actividad Propia",$N$10&"-"&T92&"-"&V92,B92="Actividad sin participación",$N$10&"-"&T92&"-"&V92,B92="","") ->  | T92: =COUNTIFS($B$24:B92,"Producto ") -> 0 | U92: FALSE | V92: 68
C93: =_xlfn.IFS(B93="Producto ",$N$10&"-"&T94,B93="Actividad Propia",$N$10&"-"&T93&"-"&V93,B93="Actividad sin participación",$N$10&"-"&T93&"-"&V93,B93="","") ->  | T93: =COUNTIFS($B$24:B93,"Producto ") -> 0 | U93: FALSE | V93: 69
C94: =_xlfn.IFS(B94="Producto ",$N$10&"-"&T95,B94="Actividad Propia",$N$10&"-"&T94&"-"&V94,B94="Actividad sin participación",$N$10&"-"&T94&"-"&V94,B94="","") ->  | T94: =COUNTIFS($B$24:B94,"Producto ") -> 0 | U94: FALSE | V94: 70
C95: =_xlfn.IFS(B95="Producto ",$N$10&"-"&T96,B95="Actividad Propia",$N$10&"-"&T95&"-"&V95,B95="Actividad sin participación",$N$10&"-"&T95&"-"&V95,B95="","") ->  | T95: =COUNTIFS($B$24:B95,"Producto ") -> 0 | U95: FALSE | V95: 71
C96: =_xlfn.IFS(B96="Producto ",$N$10&"-"&T97,B96="Actividad Propia",$N$10&"-"&T96&"-"&V96,B96="Actividad sin participación",$N$10&"-"&T96&"-"&V96,B96="","") ->  | T96: =COUNTIFS($B$24:B96,"Producto ") -> 0 | U96: FALSE | V96: 72
C97: =_xlfn.IFS(B97="Producto ",$N$10&"-"&T98,B97="Actividad Propia",$N$10&"-"&T97&"-"&V97,B97="Actividad sin participación",$N$10&"-"&T97&"-"&V97,B97="","") ->  | T97: =COUNTIFS($B$24:B97,"Producto ") -> 0 | U97: FALSE | V97: 73
C98: =_xlfn.IFS(B98="Producto ",$N$10&"-"&T99,B98="Actividad Propia",$N$10&"-"&T98&"-"&V98,B98="Actividad sin participación",$N$10&"-"&T98&"-"&V98,B98="","") ->  | T98: =COUNTIFS($B$24:B98,"Producto ") -> 0 | U98: FALSE | V98: 74
C99: =_xlfn.IFS(B99="Producto ",$N$10&"-"&T100,B99="Actividad Propia",$N$10&"-"&T99&"-"&V99,B99="Actividad sin participación",$N$10&"-"&T99&"-"&V99,B99="","") ->  | T99: =COUNTIFS($B$24:B99,"Producto ") -> 0 | U99: FALSE | V99: 75
C100: =_xlfn.IFS(B100="Producto ",$N$10&"-"&T101,B100="Actividad Propia",$N$10&"-"&T100&"-"&V100,B100="Actividad sin participación",$N$10&"-"&T100&"-"&V100,B100="","") ->  | T100: =COUNTIFS($B$24:B100,"Producto ") -> 0 | U100: FALSE | V100: 76
C101: =_xlfn.IFS(B101="Producto ",$N$10&"-"&T102,B101="Actividad Propia",$N$10&"-"&T101&"-"&V101,B101="Actividad sin participación",$N$10&"-"&T101&"-"&V101,B101="","") ->  | T101: =COUNTIFS($B$24:B101,"Producto ") -> 0 | U101: FALSE | V101: 77
C102: =_xlfn.IFS(B102="Producto ",$N$10&"-"&T103,B102="Actividad Propia",$N$10&"-"&T102&"-"&V102,B102="Actividad sin participación",$N$10&"-"&T102&"-"&V102,B102="","") ->  | T102: =COUNTIFS($B$24:B102,"Producto ") -> 0 | U102: FALSE | V102: 78
C103: =_xlfn.IFS(B103="Producto ",$N$10&"-"&T104,B103="Actividad Propia",$N$10&"-"&T103&"-"&V103,B103="Actividad sin participación",$N$10&"-"&T103&"-"&V103,B103="","") ->  | T103: =COUNTIFS($B$24:B103,"Producto ") -> 0 | U103: FALSE | V103: 79
C104: =_xlfn.IFS(B104="Producto ",$N$10&"-"&T105,B104="Actividad Propia",$N$10&"-"&T104&"-"&V104,B104="Actividad sin participación",$N$10&"-"&T104&"-"&V104,B104="","") ->  | T104: =COUNTIFS($B$24:B104,"Producto ") -> 0 | U104: FALSE | V104: 80
C105: =_xlfn.IFS(B105="Producto ",$N$10&"-"&T106,B105="Actividad Propia",$N$10&"-"&T105&"-"&V105,B105="Actividad sin participación",$N$10&"-"&T105&"-"&V105,B105="","") ->  | T105: =COUNTIFS($B$24:B105,"Producto ") -> 0 | U105: FALSE | V105: 81
C106: =_xlfn.IFS(B106="Producto ",$N$10&"-"&T107,B106="Actividad Propia",$N$10&"-"&T106&"-"&V106,B106="Actividad sin participación",$N$10&"-"&T106&"-"&V106,B106="","") ->  | T106: =COUNTIFS($B$24:B106,"Producto ") -> 0 | U106: FALSE | V106: 82
C107: =_xlfn.IFS(B107="Producto ",$N$10&"-"&T108,B107="Actividad Propia",$N$10&"-"&T107&"-"&V107,B107="Actividad sin participación",$N$10&"-"&T107&"-"&V107,B107="","") ->  | T107: =COUNTIFS($B$24:B107,"Producto ") -> 0 | U107: FALSE | V107: 83
C108: =_xlfn.IFS(B108="Producto ",$N$10&"-"&T109,B108="Actividad Propia",$N$10&"-"&T108&"-"&V108,B108="Actividad sin participación",$N$10&"-"&T108&"-"&V108,B108="","") ->  | T108: =COUNTIFS($B$24:B108,"Producto ") -> 0 | U108: FALSE | V108: 84
C109: =_xlfn.IFS(B109="Producto ",$N$10&"-"&T110,B109="Actividad Propia",$N$10&"-"&T109&"-"&V109,B109="Actividad sin participación",$N$10&"-"&T109&"-"&V109,B109="","") ->  | T109: =COUNTIFS($B$24:B109,"Producto ") -> 0 | U109: FALSE | V109: 85
C110: =_xlfn.IFS(B110="Producto ",$N$10&"-"&T111,B110="Actividad Propia",$N$10&"-"&T110&"-"&V110,B110="Actividad sin participación",$N$10&"-"&T110&"-"&V110,B110="","") ->  | T110: =COUNTIFS($B$24:B110,"Producto ") -> 0 | U110: FALSE | V110: 86
C111: =_xlfn.IFS(B111="Producto ",$N$10&"-"&T112,B111="Actividad Propia",$N$10&"-"&T111&"-"&V111,B111="Actividad sin participación",$N$10&"-"&T111&"-"&V111,B111="","") ->  | T111: =COUNTIFS($B$24:B111,"Producto ") -> 0 | U111: FALSE | V111: 87
C112: =_xlfn.IFS(B112="Producto ",$N$10&"-"&T113,B112="Actividad Propia",$N$10&"-"&T112&"-"&V112,B112="Actividad sin participación",$N$10&"-"&T112&"-"&V112,B112="","") ->  | T112: =COUNTIFS($B$24:B112,"Producto ") -> 0 | U112: FALSE | V112: 88
C113: =_xlfn.IFS(B113="Producto ",$N$10&"-"&T114,B113="Actividad Propia",$N$10&"-"&T113&"-"&V113,B113="Actividad sin participación",$N$10&"-"&T113&"-"&V113,B113="","") ->  | T113: =COUNTIFS($B$24:B113,"Producto ") -> 0 | U113: FALSE | V113: 89
C114: =_xlfn.IFS(B114="Producto ",$N$10&"-"&T115,B114="Actividad Propia",$N$10&"-"&T114&"-"&V114,B114="Actividad sin participación",$N$10&"-"&T114&"-"&V114,B114="","") ->  | T114: =COUNTIFS($B$24:B114,"Producto ") -> 0 | U114: FALSE | V114: 90
C115: =_xlfn.IFS(B115="Producto ",$N$10&"-"&T116,B115="Actividad Propia",$N$10&"-"&T115&"-"&V115,B115="Actividad sin participación",$N$10&"-"&T115&"-"&V115,B115="","") ->  | T115: =COUNTIFS($B$24:B115,"Producto ") -> 0 | U115: FALSE | V115: 91
C116: =_xlfn.IFS(B116="Producto ",$N$10&"-"&T117,B116="Actividad Propia",$N$10&"-"&T116&"-"&V116,B116="Actividad sin participación",$N$10&"-"&T116&"-"&V116,B116="","") ->  | T116: =COUNTIFS($B$24:B116,"Producto ") -> 0 | U116: FALSE | V116: 92
C117: =_xlfn.IFS(B117="Producto ",$N$10&"-"&T118,B117="Actividad Propia",$N$10&"-"&T117&"-"&V117,B117="Actividad sin participación",$N$10&"-"&T117&"-"&V117,B117="","") ->  | T117: =COUNTIFS($B$24:B117,"Producto ") -> 0 | U117: FALSE | V117: 93
C118: =_xlfn.IFS(B118="Producto ",$N$10&"-"&T119,B118="Actividad Propia",$N$10&"-"&T118&"-"&V118,B118="Actividad sin participación",$N$10&"-"&T118&"-"&V118,B118="","") ->  | T118: =COUNTIFS($B$24:B118,"Producto ") -> 0 | U118: FALSE | V118: 94
C119: =_xlfn.IFS(B119="Producto ",$N$10&"-"&T120,B119="Actividad Propia",$N$10&"-"&T119&"-"&V119,B119="Actividad sin participación",$N$10&"-"&T119&"-"&V119,B119="","") ->  | T119: =COUNTIFS($B$24:B119,"Producto ") -> 0 | U119: FALSE | V119: 95
C120: =_xlfn.IFS(B120="Producto ",$N$10&"-"&T121,B120="Actividad Propia",$N$10&"-"&T120&"-"&V120,B120="Actividad sin participación",$N$10&"-"&T120&"-"&V120,B120="","") ->  | T120: =COUNTIFS($B$24:B120,"Producto ") -> 0 | U120: FALSE | V120: 96
C121: =_xlfn.IFS(B121="Producto ",$N$10&"-"&T122,B121="Actividad Propia",$N$10&"-"&T121&"-"&V121,B121="Actividad sin participación",$N$10&"-"&T121&"-"&V121,B121="","") ->  | T121: =COUNTIFS($B$24:B121,"Producto ") -> 0 | U121: FALSE | V121: 97
C122: =_xlfn.IFS(B122="Producto ",$N$10&"-"&T123,B122="Actividad Propia",$N$10&"-"&T122&"-"&V122,B122="Actividad sin participación",$N$10&"-"&T122&"-"&V122,B122="","") ->  | T122: =COUNTIFS($B$24:B122,"Producto ") -> 0 | U122: FALSE | V122: 98
C123: =_xlfn.IFS(B123="Producto ",$N$10&"-"&T124,B123="Actividad Propia",$N$10&"-"&T123&"-"&V123,B123="Actividad sin participación",$N$10&"-"&T123&"-"&V123,B123="","") ->  | T123: =COUNTIFS($B$24:B123,"Producto ") -> 0 | U123: FALSE | V123: 99
C124: =_xlfn.IFS(B124="Producto ",$N$10&"-"&T125,B124="Actividad Propia",$N$10&"-"&T124&"-"&V124,B124="Actividad sin participación",$N$10&"-"&T124&"-"&V124,B124="","") ->  | T124: =COUNTIFS($B$24:B124,"Producto ") -> 0 | U124: FALSE | V124: 100
C125: =_xlfn.IFS(B125="Producto ",$N$10&"-"&T126,B125="Actividad Propia",$N$10&"-"&T125&"-"&V125,B125="Actividad sin participación",$N$10&"-"&T125&"-"&V125,B125="","") ->  | T125: =COUNTIFS($B$24:B125,"Producto ") -> 0 | U125: FALSE | V125: 101
C126: =_xlfn.IFS(B126="Producto ",$N$10&"-"&T127,B126="Actividad Propia",$N$10&"-"&T126&"-"&V126,B126="Actividad sin participación",$N$10&"-"&T126&"-"&V126,B126="","") ->  | T126: =COUNTIFS($B$24:B126,"Producto ") -> 0 | U126: FALSE | V126: 102
C127: =_xlfn.IFS(B127="Producto ",$N$10&"-"&T128,B127="Actividad Propia",$N$10&"-"&T127&"-"&V127,B127="Actividad sin participación",$N$10&"-"&T127&"-"&V127,B127="","") ->  | T127: =COUNTIFS($B$24:B127,"Producto ") -> 0 | U127: FALSE | V127: 103
C128: =_xlfn.IFS(B128="Producto ",$N$10&"-"&T129,B128="Actividad Propia",$N$10&"-"&T128&"-"&V128,B128="Actividad sin participación",$N$10&"-"&T128&"-"&V128,B128="","") ->  | T128: =COUNTIFS($B$24:B128,"Producto ") -> 0 | U128: FALSE | V128: 104
C129: =_xlfn.IFS(B129="Producto ",$N$10&"-"&T130,B129="Actividad Propia",$N$10&"-"&T129&"-"&V129,B129="Actividad sin participación",$N$10&"-"&T129&"-"&V129,B129="","") ->  | T129: =COUNTIFS($B$24:B129,"Producto ") -> 0 | U129: FALSE | V129: 105
C130: =_xlfn.IFS(B130="Producto ",$N$10&"-"&T131,B130="Actividad Propia",$N$10&"-"&T130&"-"&V130,B130="Actividad sin participación",$N$10&"-"&T130&"-"&V130,B130="","") ->  | T130: =COUNTIFS($B$24:B130,"Producto ") -> 0 | U130: FALSE | V130: 106
C131: =_xlfn.IFS(B131="Producto ",$N$10&"-"&T132,B131="Actividad Propia",$N$10&"-"&T131&"-"&V131,B131="Actividad sin participación",$N$10&"-"&T131&"-"&V131,B131="","") ->  | T131: =COUNTIFS($B$24:B131,"Producto ") -> 0 | U131: FALSE | V131: 107
C132: =_xlfn.IFS(B132="Producto ",$N$10&"-"&T133,B132="Actividad Propia",$N$10&"-"&T132&"-"&V132,B132="Actividad sin participación",$N$10&"-"&T132&"-"&V132,B132="","") ->  | T132: =COUNTIFS($B$24:B132,"Producto ") -> 0 | U132: FALSE | V132: 108
C133: =_xlfn.IFS(B133="Producto ",$N$10&"-"&T134,B133="Actividad Propia",$N$10&"-"&T133&"-"&V133,B133="Actividad sin participación",$N$10&"-"&T133&"-"&V133,B133="","") ->  | T133: =COUNTIFS($B$24:B133,"Producto ") -> 0 | U133: FALSE | V133: 109
C134: =_xlfn.IFS(B134="Producto ",$N$10&"-"&T135,B134="Actividad Propia",$N$10&"-"&T134&"-"&V134,B134="Actividad sin participación",$N$10&"-"&T134&"-"&V134,B134="","") ->  | T134: =COUNTIFS($B$24:B134,"Producto ") -> 0 | U134: FALSE | V134: 110
C135: =_xlfn.IFS(B135="Producto ",$N$10&"-"&T136,B135="Actividad Propia",$N$10&"-"&T135&"-"&V135,B135="Actividad sin participación",$N$10&"-"&T135&"-"&V135,B135="","") ->  | T135: =COUNTIFS($B$24:B135,"Producto ") -> 0 | U135: FALSE | V135: 111
C136: =_xlfn.IFS(B136="Producto ",$N$10&"-"&T137,B136="Actividad Propia",$N$10&"-"&T136&"-"&V136,B136="Actividad sin participación",$N$10&"-"&T136&"-"&V136,B136="","") ->  | T136: =COUNTIFS($B$24:B136,"Producto ") -> 0 | U136: FALSE | V136: 112
C137: =_xlfn.IFS(B137="Producto ",$N$10&"-"&T138,B137="Actividad Propia",$N$10&"-"&T137&"-"&V137,B137="Actividad sin participación",$N$10&"-"&T137&"-"&V137,B137="","") ->  | T137: =COUNTIFS($B$24:B137,"Producto ") -> 0 | U137: FALSE | V137: 113
C138: =_xlfn.IFS(B138="Producto ",$N$10&"-"&T139,B138="Actividad Propia",$N$10&"-"&T138&"-"&V138,B138="Actividad sin participación",$N$10&"-"&T138&"-"&V138,B138="","") ->  | T138: =COUNTIFS($B$24:B138,"Producto ") -> 0 | U138: FALSE | V138: 114
C139: =_xlfn.IFS(B139="Producto ",$N$10&"-"&T140,B139="Actividad Propia",$N$10&"-"&T139&"-"&V139,B139="Actividad sin participación",$N$10&"-"&T139&"-"&V139,B139="","") ->  | T139: =COUNTIFS($B$24:B139,"Producto ") -> 0 | U139: FALSE | V139: 115
C140: =_xlfn.IFS(B140="Producto ",$N$10&"-"&T141,B140="Actividad Propia",$N$10&"-"&T140&"-"&V140,B140="Actividad sin participación",$N$10&"-"&T140&"-"&V140,B140="","") ->  | T140: =COUNTIFS($B$24:B140,"Producto ") -> 0 | U140: FALSE | V140: 116
C141: =_xlfn.IFS(B141="Producto ",$N$10&"-"&T142,B141="Actividad Propia",$N$10&"-"&T141&"-"&V141,B141="Actividad sin participación",$N$10&"-"&T141&"-"&V141,B141="","") ->  | T141: =COUNTIFS($B$24:B141,"Producto ") -> 0 | U141: FALSE | V141: 117
C142: =_xlfn.IFS(B142="Producto ",$N$10&"-"&T143,B142="Actividad Propia",$N$10&"-"&T142&"-"&V142,B142="Actividad sin participación",$N$10&"-"&T142&"-"&V142,B142="","") ->  | T142: =COUNTIFS($B$24:B142,"Producto ") -> 0 | U142: FALSE | V142: 118
C143: =_xlfn.IFS(B143="Producto ",$N$10&"-"&T144,B143="Actividad Propia",$N$10&"-"&T143&"-"&V143,B143="Actividad sin participación",$N$10&"-"&T143&"-"&V143,B143="","") ->  | T143: =COUNTIFS($B$24:B143,"Producto ") -> 0 | U143: FALSE | V143: 119
C144: =_xlfn.IFS(B144="Producto ",$N$10&"-"&T145,B144="Actividad Propia",$N$10&"-"&T144&"-"&V144,B144="Actividad sin participación",$N$10&"-"&T144&"-"&V144,B144="","") ->  | T144: =COUNTIFS($B$24:B144,"Producto ") -> 0 | U144: FALSE | V144: 120
C145: =_xlfn.IFS(B145="Producto ",$N$10&"-"&T146,B145="Actividad Propia",$N$10&"-"&T145&"-"&V145,B145="Actividad sin participación",$N$10&"-"&T145&"-"&V145,B145="","") ->  | T145: =COUNTIFS($B$24:B145,"Producto ") -> 0 | U145: FALSE | V145: 121
C146: =_xlfn.IFS(B146="Producto ",$N$10&"-"&T147,B146="Actividad Propia",$N$10&"-"&T146&"-"&V146,B146="Actividad sin participación",$N$10&"-"&T146&"-"&V146,B146="","") ->  | T146: =COUNTIFS($B$24:B146,"Producto ") -> 0 | U146: FALSE | V146: 122
C147: =_xlfn.IFS(B147="Producto ",$N$10&"-"&T148,B147="Actividad Propia",$N$10&"-"&T147&"-"&V147,B147="Actividad sin participación",$N$10&"-"&T147&"-"&V147,B147="","") ->  | T147: =COUNTIFS($B$24:B147,"Producto ") -> 0 | U147: FALSE | V147: 123
C148: =_xlfn.IFS(B148="Producto ",$N$10&"-"&T149,B148="Actividad Propia",$N$10&"-"&T148&"-"&V148,B148="Actividad sin participación",$N$10&"-"&T148&"-"&V148,B148="","") ->  | T148: =COUNTIFS($B$24:B148,"Producto ") -> 0 | U148: FALSE | V148: 124
C149: =_xlfn.IFS(B149="Producto ",$N$10&"-"&T150,B149="Actividad Propia",$N$10&"-"&T149&"-"&V149,B149="Actividad sin participación",$N$10&"-"&T149&"-"&V149,B149="","") ->  | T149: =COUNTIFS($B$24:B149,"Producto ") -> 0 | U149: FALSE | V149: 125
C150: =_xlfn.IFS(B150="Producto ",$N$10&"-"&T151,B150="Actividad Propia",$N$10&"-"&T150&"-"&V150,B150="Actividad sin participación",$N$10&"-"&T150&"-"&V150,B150="","") ->  | T150: =COUNTIFS($B$24:B150,"Producto ") -> 0 | U150: FALSE | V150: 126
C151: =_xlfn.IFS(B151="Producto ",$N$10&"-"&T152,B151="Actividad Propia",$N$10&"-"&T151&"-"&V151,B151="Actividad sin participación",$N$10&"-"&T151&"-"&V151,B151="","") ->  | T151: =COUNTIFS($B$24:B151,"Producto ") -> 0 | U151: FALSE | V151: 127
C152: =_xlfn.IFS(B152="Producto ",$N$10&"-"&T153,B152="Actividad Propia",$N$10&"-"&T152&"-"&V152,B152="Actividad sin participación",$N$10&"-"&T152&"-"&V152,B152="","") ->  | T152: =COUNTIFS($B$24:B152,"Producto ") -> 0 | U152: FALSE | V152: 128
C153: =_xlfn.IFS(B153="Producto ",$N$10&"-"&T154,B153="Actividad Propia",$N$10&"-"&T153&"-"&V153,B153="Actividad sin participación",$N$10&"-"&T153&"-"&V153,B153="","") ->  | T153: =COUNTIFS($B$24:B153,"Producto ") -> 0 | U153: =IF(B152="Producto ",C152&"-"&V153) -> FALSE | V153: =IF(B152="Producto ",1,V152+1) -> 129
C154: =_xlfn.IFS(B154="Producto ",$N$10&"-"&T155,B154="Actividad Propia",$N$10&"-"&T154&"-"&V154,B154="Actividad sin participación",$N$10&"-"&T154&"-"&V154,B154="","") ->  | T154: =COUNTIFS($B$24:B154,"Producto ") -> 0 | U154: FALSE | V154: 130
C155: =_xlfn.IFS(B155="Producto ",$N$10&"-"&T156,B155="Actividad Propia",$N$10&"-"&T155&"-"&V155,B155="Actividad sin participación",$N$10&"-"&T155&"-"&V155,B155="","") ->  | T155: =COUNTIFS($B$24:B155,"Producto ") -> 0 | U155: FALSE | V155: 131
C156: =_xlfn.IFS(B156="Producto ",$N$10&"-"&T157,B156="Actividad Propia",$N$10&"-"&T156&"-"&V156,B156="Actividad sin participación",$N$10&"-"&T156&"-"&V156,B156="","") ->  | T156: =COUNTIFS($B$24:B156,"Producto ") -> 0 | U156: FALSE | V156: 132
C157: =_xlfn.IFS(B157="Producto ",$N$10&"-"&T158,B157="Actividad Propia",$N$10&"-"&T157&"-"&V157,B157="Actividad sin participación",$N$10&"-"&T157&"-"&V157,B157="","") ->  | T157: =COUNTIFS($B$24:B157,"Producto ") -> 0 | U157: FALSE | V157: 133
C158: =_xlfn.IFS(B158="Producto ",$N$10&"-"&T159,B158="Actividad Propia",$N$10&"-"&T158&"-"&V158,B158="Actividad sin participación",$N$10&"-"&T158&"-"&V158,B158="","") ->  | T158: =COUNTIFS($B$24:B158,"Producto ") -> 0 | U158: FALSE | V158: 134
C159: =_xlfn.IFS(B159="Producto ",$N$10&"-"&T160,B159="Actividad Propia",$N$10&"-"&T159&"-"&V159,B159="Actividad sin participación",$N$10&"-"&T159&"-"&V159,B159="","") ->  | T159: =COUNTIFS($B$24:B159,"Producto ") -> 0 | U159: FALSE | V159: 135
C160: =_xlfn.IFS(B160="Producto ",$N$10&"-"&T161,B160="Actividad Propia",$N$10&"-"&T160&"-"&V160,B160="Actividad sin participación",$N$10&"-"&T160&"-"&V160,B160="","") ->  | T160: =COUNTIFS($B$24:B160,"Producto ") -> 0 | U160: FALSE | V160: 136
C161: =_xlfn.IFS(B161="Producto ",$N$10&"-"&T162,B161="Actividad Propia",$N$10&"-"&T161&"-"&V161,B161="Actividad sin participación",$N$10&"-"&T161&"-"&V161,B161="","") ->  | T161: =COUNTIFS($B$24:B161,"Producto ") -> 0 | U161: FALSE | V161: 137
C162: =_xlfn.IFS(B162="Producto ",$N$10&"-"&T163,B162="Actividad Propia",$N$10&"-"&T162&"-"&V162,B162="Actividad sin participación",$N$10&"-"&T162&"-"&V162,B162="","") ->  | T162: =COUNTIFS($B$24:B162,"Producto ") -> 0 | U162: FALSE | V162: 138
C163: =_xlfn.IFS(B163="Producto ",$N$10&"-"&T164,B163="Actividad Propia",$N$10&"-"&T163&"-"&V163,B163="Actividad sin participación",$N$10&"-"&T163&"-"&V163,B163="","") ->  | T163: =COUNTIFS($B$24:B163,"Producto ") -> 0 | U163: FALSE | V163: 139
C164: =_xlfn.IFS(B164="Producto ",$N$10&"-"&T165,B164="Actividad Propia",$N$10&"-"&T164&"-"&V164,B164="Actividad sin participación",$N$10&"-"&T164&"-"&V164,B164="","") ->  | T164: =COUNTIFS($B$24:B164,"Producto ") -> 0 | U164: FALSE | V164: 140
C165: =_xlfn.IFS(B165="Producto ",$N$10&"-"&T166,B165="Actividad Propia",$N$10&"-"&T165&"-"&V165,B165="Actividad sin participación",$N$10&"-"&T165&"-"&V165,B165="","") ->  | T165: =COUNTIFS($B$24:B165,"Producto ") -> 0 | U165: FALSE | V165: 141
C166: =_xlfn.IFS(B166="Producto ",$N$10&"-"&T167,B166="Actividad Propia",$N$10&"-"&T166&"-"&V166,B166="Actividad sin participación",$N$10&"-"&T166&"-"&V166,B166="","") ->  | T166: =COUNTIFS($B$24:B166,"Producto ") -> 0 | U166: FALSE | V166: 142
C167: =_xlfn.IFS(B167="Producto ",$N$10&"-"&T168,B167="Actividad Propia",$N$10&"-"&T167&"-"&V167,B167="Actividad sin participación",$N$10&"-"&T167&"-"&V167,B167="","") ->  | T167: =COUNTIFS($B$24:B167,"Producto ") -> 0 | U167: FALSE | V167: 143
C168: =_xlfn.IFS(B168="Producto ",$N$10&"-"&T169,B168="Actividad Propia",$N$10&"-"&T168&"-"&V168,B168="Actividad sin participación",$N$10&"-"&T168&"-"&V168,B168="","") ->  | T168: =COUNTIFS($B$24:B168,"Producto ") -> 0 | U168: FALSE | V168: 144
C169: =_xlfn.IFS(B169="Producto ",$N$10&"-"&T170,B169="Actividad Propia",$N$10&"-"&T169&"-"&V169,B169="Actividad sin participación",$N$10&"-"&T169&"-"&V169,B169="","") ->  | T169: =COUNTIFS($B$24:B169,"Producto ") -> 0 | U169: FALSE | V169: 145
C170: =_xlfn.IFS(B170="Producto ",$N$10&"-"&T171,B170="Actividad Propia",$N$10&"-"&T170&"-"&V170,B170="Actividad sin participación",$N$10&"-"&T170&"-"&V170,B170="","") ->  | T170: =COUNTIFS($B$24:B170,"Producto ") -> 0 | U170: FALSE | V170: 146
C171: =_xlfn.IFS(B171="Producto ",$N$10&"-"&T172,B171="Actividad Propia",$N$10&"-"&T171&"-"&V171,B171="Actividad sin participación",$N$10&"-"&T171&"-"&V171,B171="","") ->  | T171: =COUNTIFS($B$24:B171,"Producto ") -> 0 | U171: FALSE | V171: 147
C172: =_xlfn.IFS(B172="Producto ",$N$10&"-"&T173,B172="Actividad Propia",$N$10&"-"&T172&"-"&V172,B172="Actividad sin participación",$N$10&"-"&T172&"-"&V172,B172="","") ->  | T172: =COUNTIFS($B$24:B172,"Producto ") -> 0 | U172: FALSE | V172: 148
C173: =_xlfn.IFS(B173="Producto ",$N$10&"-"&T174,B173="Actividad Propia",$N$10&"-"&T173&"-"&V173,B173="Actividad sin participación",$N$10&"-"&T173&"-"&V173,B173="","") ->  | T173: =COUNTIFS($B$24:B173,"Producto ") -> 0 | U173: FALSE | V173: 149
C174: =_xlfn.IFS(B174="Producto ",$N$10&"-"&T175,B174="Actividad Propia",$N$10&"-"&T174&"-"&V174,B174="Actividad sin participación",$N$10&"-"&T174&"-"&V174,B174="","") ->  | T174: =COUNTIFS($B$24:B174,"Producto ") -> 0 | U174: FALSE | V174: 150
C175: =_xlfn.IFS(B175="Producto ",$N$10&"-"&T176,B175="Actividad Propia",$N$10&"-"&T175&"-"&V175,B175="Actividad sin participación",$N$10&"-"&T175&"-"&V175,B175="","") ->  | T175: =COUNTIFS($B$24:B175,"Producto ") -> 0 | U175: FALSE | V175: 151
C176: =_xlfn.IFS(B176="Producto ",$N$10&"-"&T177,B176="Actividad Propia",$N$10&"-"&T176&"-"&V176,B176="Actividad sin participación",$N$10&"-"&T176&"-"&V176,B176="","") ->  | T176: =COUNTIFS($B$24:B176,"Producto ") -> 0 | U176: FALSE | V176: 152
C177: =_xlfn.IFS(B177="Producto ",$N$10&"-"&T178,B177="Actividad Propia",$N$10&"-"&T177&"-"&V177,B177="Actividad sin participación",$N$10&"-"&T177&"-"&V177,B177="","") ->  | T177: =COUNTIFS($B$24:B177,"Producto ") -> 0 | U177: FALSE | V177: 153
C178: =_xlfn.IFS(B178="Producto ",$N$10&"-"&T179,B178="Actividad Propia",$N$10&"-"&T178&"-"&V178,B178="Actividad sin participación",$N$10&"-"&T178&"-"&V178,B178="","") ->  | T178: =COUNTIFS($B$24:B178,"Producto ") -> 0 | U178: FALSE | V178: 154
C179: =_xlfn.IFS(B179="Producto ",$N$10&"-"&T180,B179="Actividad Propia",$N$10&"-"&T179&"-"&V179,B179="Actividad sin participación",$N$10&"-"&T179&"-"&V179,B179="","") ->  | T179: =COUNTIFS($B$24:B179,"Producto ") -> 0 | U179: FALSE | V179: 155
C180: =_xlfn.IFS(B180="Producto ",$N$10&"-"&T181,B180="Actividad Propia",$N$10&"-"&T180&"-"&V180,B180="Actividad sin participación",$N$10&"-"&T180&"-"&V180,B180="","") ->  | T180: =COUNTIFS($B$24:B180,"Producto ") -> 0 | U180: FALSE | V180: 156
C181: =_xlfn.IFS(B181="Producto ",$N$10&"-"&T182,B181="Actividad Propia",$N$10&"-"&T181&"-"&V181,B181="Actividad sin participación",$N$10&"-"&T181&"-"&V181,B181="","") ->  | T181: =COUNTIFS($B$24:B181,"Producto ") -> 0 | U181: FALSE | V181: 157
C182: =_xlfn.IFS(B182="Producto ",$N$10&"-"&T183,B182="Actividad Propia",$N$10&"-"&T182&"-"&V182,B182="Actividad sin participación",$N$10&"-"&T182&"-"&V182,B182="","") ->  | T182: =COUNTIFS($B$24:B182,"Producto ") -> 0 | U182: FALSE | V182: 158
C183: =_xlfn.IFS(B183="Producto ",$N$10&"-"&T184,B183="Actividad Propia",$N$10&"-"&T183&"-"&V183,B183="Actividad sin participación",$N$10&"-"&T183&"-"&V183,B183="","") ->  | T183: =COUNTIFS($B$24:B183,"Producto ") -> 0 | U183: FALSE | V183: 159
C184: =_xlfn.IFS(B184="Producto ",$N$10&"-"&T185,B184="Actividad Propia",$N$10&"-"&T184&"-"&V184,B184="Actividad sin participación",$N$10&"-"&T184&"-"&V184,B184="","") ->  | T184: =COUNTIFS($B$24:B184,"Producto ") -> 0 | U184: FALSE | V184: 160
C185: =_xlfn.IFS(B185="Producto ",$N$10&"-"&T186,B185="Actividad Propia",$N$10&"-"&T185&"-"&V185,B185="Actividad sin participación",$N$10&"-"&T185&"-"&V185,B185="","") ->  | T185: =COUNTIFS($B$24:B185,"Producto ") -> 0 | U185: FALSE | V185: 161
C186: =_xlfn.IFS(B186="Producto ",$N$10&"-"&T187,B186="Actividad Propia",$N$10&"-"&T186&"-"&V186,B186="Actividad sin participación",$N$10&"-"&T186&"-"&V186,B186="","") ->  | T186: =COUNTIFS($B$24:B186,"Producto ") -> 0 | U186: FALSE | V186: 162
C187: =_xlfn.IFS(B187="Producto ",$N$10&"-"&T188,B187="Actividad Propia",$N$10&"-"&T187&"-"&V187,B187="Actividad sin participación",$N$10&"-"&T187&"-"&V187,B187="","") ->  | T187: =COUNTIFS($B$24:B187,"Producto ") -> 0 | U187: FALSE | V187: 163
C188: =_xlfn.IFS(B188="Producto ",$N$10&"-"&T189,B188="Actividad Propia",$N$10&"-"&T188&"-"&V188,B188="Actividad sin participación",$N$10&"-"&T188&"-"&V188,B188="","") ->  | T188: =COUNTIFS($B$24:B188,"Producto ") -> 0 | U188: FALSE | V188: 164
C189: =_xlfn.IFS(B189="Producto ",$N$10&"-"&T190,B189="Actividad Propia",$N$10&"-"&T189&"-"&V189,B189="Actividad sin participación",$N$10&"-"&T189&"-"&V189,B189="","") ->  | T189: =COUNTIFS($B$24:B189,"Producto ") -> 0 | U189: FALSE | V189: 165
C190: =_xlfn.IFS(B190="Producto ",$N$10&"-"&T191,B190="Actividad Propia",$N$10&"-"&T190&"-"&V190,B190="Actividad sin participación",$N$10&"-"&T190&"-"&V190,B190="","") ->  | T190: =COUNTIFS($B$24:B190,"Producto ") -> 0 | U190: FALSE | V190: 166
C191: =_xlfn.IFS(B191="Producto ",$N$10&"-"&T192,B191="Actividad Propia",$N$10&"-"&T191&"-"&V191,B191="Actividad sin participación",$N$10&"-"&T191&"-"&V191,B191="","") ->  | T191: =COUNTIFS($B$24:B191,"Producto ") -> 0 | U191: FALSE | V191: 167
C192: =_xlfn.IFS(B192="Producto ",$N$10&"-"&T193,B192="Actividad Propia",$N$10&"-"&T192&"-"&V192,B192="Actividad sin participación",$N$10&"-"&T192&"-"&V192,B192="","") ->  | T192: =COUNTIFS($B$24:B192,"Producto ") -> 0 | U192: FALSE | V192: 168
C193: =_xlfn.IFS(B193="Producto ",$N$10&"-"&T194,B193="Actividad Propia",$N$10&"-"&T193&"-"&V193,B193="Actividad sin participación",$N$10&"-"&T193&"-"&V193,B193="","") ->  | T193: =COUNTIFS($B$24:B193,"Producto ") -> 0 | U193: FALSE | V193: 169
C194: =_xlfn.IFS(B194="Producto ",$N$10&"-"&T195,B194="Actividad Propia",$N$10&"-"&T194&"-"&V194,B194="Actividad sin participación",$N$10&"-"&T194&"-"&V194,B194="","") ->  | T194: =COUNTIFS($B$24:B194,"Producto ") -> 0 | U194: FALSE | V194: 170
C195: =_xlfn.IFS(B195="Producto ",$N$10&"-"&T196,B195="Actividad Propia",$N$10&"-"&T195&"-"&V195,B195="Actividad sin participación",$N$10&"-"&T195&"-"&V195,B195="","") ->  | T195: =COUNTIFS($B$24:B195,"Producto ") -> 0 | U195: FALSE | V195: 171
C196: =_xlfn.IFS(B196="Producto ",$N$10&"-"&T197,B196="Actividad Propia",$N$10&"-"&T196&"-"&V196,B196="Actividad sin participación",$N$10&"-"&T196&"-"&V196,B196="","") ->  | T196: =COUNTIFS($B$24:B196,"Producto ") -> 0 | U196: FALSE | V196: 172
C197: =_xlfn.IFS(B197="Producto ",$N$10&"-"&T198,B197="Actividad Propia",$N$10&"-"&T197&"-"&V197,B197="Actividad sin participación",$N$10&"-"&T197&"-"&V197,B197="","") ->  | T197: =COUNTIFS($B$24:B197,"Producto ") -> 0 | U197: FALSE | V197: 173
C198: =_xlfn.IFS(B198="Producto ",$N$10&"-"&T199,B198="Actividad Propia",$N$10&"-"&T198&"-"&V198,B198="Actividad sin participación",$N$10&"-"&T198&"-"&V198,B198="","") ->  | T198: =COUNTIFS($B$24:B198,"Producto ") -> 0 | U198: FALSE | V198: 174
C199: =_xlfn.IFS(B199="Producto ",$N$10&"-"&T200,B199="Actividad Propia",$N$10&"-"&T199&"-"&V199,B199="Actividad sin participación",$N$10&"-"&T199&"-"&V199,B199="","") ->  | T199: =COUNTIFS($B$24:B199,"Producto ") -> 0 | U199: FALSE | V199: 175
C200: =_xlfn.IFS(B200="Producto ",$N$10&"-"&T201,B200="Actividad Propia",$N$10&"-"&T200&"-"&V200,B200="Actividad sin participación",$N$10&"-"&T200&"-"&V200,B200="","") ->  | T200: =COUNTIFS($B$24:B200,"Producto ") -> 0 | U200: FALSE | V200: 176
C201: =_xlfn.IFS(B201="Producto ",$N$10&"-"&T202,B201="Actividad Propia",$N$10&"-"&T201&"-"&V201,B201="Actividad sin participación",$N$10&"-"&T201&"-"&V201,B201="","") ->  | T201: =COUNTIFS($B$24:B201,"Producto ") -> 0 | U201: FALSE | V201: 177
C202: =_xlfn.IFS(B202="Producto ",$N$10&"-"&T203,B202="Actividad Propia",$N$10&"-"&T202&"-"&V202,B202="Actividad sin participación",$N$10&"-"&T202&"-"&V202,B202="","") ->  | T202: =COUNTIFS($B$24:B202,"Producto ") -> 0 | U202: FALSE | V202: 178
C203: =_xlfn.IFS(B203="Producto ",$N$10&"-"&T204,B203="Actividad Propia",$N$10&"-"&T203&"-"&V203,B203="Actividad sin participación",$N$10&"-"&T203&"-"&V203,B203="","") ->  | T203: =COUNTIFS($B$24:B203,"Producto ") -> 0 | U203: FALSE | V203: 179
C204: =_xlfn.IFS(B204="Producto ",$N$10&"-"&T205,B204="Actividad Propia",$N$10&"-"&T204&"-"&V204,B204="Actividad sin participación",$N$10&"-"&T204&"-"&V204,B204="","") ->  | T204: =COUNTIFS($B$24:B204,"Producto ") -> 0 | U204: FALSE | V204: 180
C205: =_xlfn.IFS(B205="Producto ",$N$10&"-"&T206,B205="Actividad Propia",$N$10&"-"&T205&"-"&V205,B205="Actividad sin participación",$N$10&"-"&T205&"-"&V205,B205="","") ->  | T205: =COUNTIFS($B$24:B205,"Producto ") -> 0 | U205: FALSE | V205: 181
C206: =_xlfn.IFS(B206="Producto ",$N$10&"-"&T207,B206="Actividad Propia",$N$10&"-"&T206&"-"&V206,B206="Actividad sin participación",$N$10&"-"&T206&"-"&V206,B206="","") ->  | T206: =COUNTIFS($B$24:B206,"Producto ") -> 0 | U206: FALSE | V206: 182
C207: =_xlfn.IFS(B207="Producto ",$N$10&"-"&T208,B207="Actividad Propia",$N$10&"-"&T207&"-"&V207,B207="Actividad sin participación",$N$10&"-"&T207&"-"&V207,B207="","") ->  | T207: =COUNTIFS($B$24:B207,"Producto ") -> 0 | U207: FALSE | V207: 183
C208: =_xlfn.IFS(B208="Producto ",$N$10&"-"&T209,B208="Actividad Propia",$N$10&"-"&T208&"-"&V208,B208="Actividad sin participación",$N$10&"-"&T208&"-"&V208,B208="","") ->  | T208: =COUNTIFS($B$24:B208,"Producto ") -> 0 | U208: FALSE | V208: 184
C209: =_xlfn.IFS(B209="Producto ",$N$10&"-"&T210,B209="Actividad Propia",$N$10&"-"&T209&"-"&V209,B209="Actividad sin participación",$N$10&"-"&T209&"-"&V209,B209="","") ->  | T209: =COUNTIFS($B$24:B209,"Producto ") -> 0 | U209: FALSE | V209: 185
C210: =_xlfn.IFS(B210="Producto ",$N$10&"-"&T211,B210="Actividad Propia",$N$10&"-"&T210&"-"&V210,B210="Actividad sin participación",$N$10&"-"&T210&"-"&V210,B210="","") ->  | T210: =COUNTIFS($B$24:B210,"Producto ") -> 0 | U210: FALSE | V210: 186
... 791 more rows

Sheet LISTAS (hidden)
A1: Oficina Asesora Jurídica | B1: Oficina de Control Interno | C1: Oficina Asesora de Planeación | D1: Oficina de Servicios al Consumidor y de Apoyo Empresarial | E1: Oficina de Tecnología e Informática | F1: Secretaría General | G1: Delegatura para la protección del Consumidor | H1: Delegatura para la Protección de Datos | I1: Delegatura para el Control y Verificación de Reglamentos Técnicos y Metrología Legal | J1: Delegatura para Asuntos Jurisdiccionales | K1: Delegatura para la Propiedad Industrial | L1: Delegatura para la Protección de la Competencia
A2: Grupo de Trabajo Cobro Coactivo | C2: Grupo de Trabajo de Estudios Económicos | D2: Grupo de Atención al Ciudadano | F2: Grupo de Trabajo de Administración de Personal | G2: Grupo de trabajo de Apoyo a la Red Nacional de Protección al Consumidor | K2: Grupo de Trabajo de Vía Gubernativa
A3: Grupo de Trabajo Gestión Judicial | C3: Grupo de Trabajo de Asuntos Internacionales | D3: Grupo de Formación | F3: Grupo de Trabajo de Desarrollo del Talento Humano | G3: Dirección de Investigaciones de Protección al Consumidor | K3: Grupo de Trabajo de Centro de Información Tecnológica y Apoyo a la Gestión de Propiedad Industrial - CIGEPI
A4: Grupo de Trabajo de Regulación | D4: Grupo de Comunicación | F4: Grupo de Trabajo de Control Disciplinario Interno | G4: Dirección de Investigaciones de Protección de Usuarios de Servicios de Comunicaciones | K4: Dirección de Signos Distintivos
F5: Grupo de Trabajo de Notificaciones y Certificaciones | K5: Dirección de Nuevas Creaciones
F6: Grupo de Trabajo de Gestión Documental y Archivo
F7: Grupo de Trabajo de Servicios Administrativos y Recursos Físicos
F8: Grupo de Trabajo Contratación
F9: Dirección Financiera
A10: GRUPO1 | B10: GRUPO2 | C10: GRUPO3 | D10: GRUPO4 | E10: GRUPO5 | F10: GRUPO6 | G10: GRUPO7 | H10: GRUPO8 | I10: GRUPO9 | J10: GRUPO10 | K10: GRUPO11 | L10: GRUPO12
A12: Fórmula para generación de rangos: | D12: =+HLOOKUP('FORMULACIÓN '!$N$6,LISTAS!A1:L10,10,0) -> 
A14: DEPENDENCIAS | B14: código
A15: Oficina Asesora Jurídica | B15: 10
A16: Grupo de Trabajo Cobro Coactivo | B16: 11
A17: Gestión de Trabajo Gestión Judicial | B17: 60
A18: Grupo de Trabajo de Regulación | B18: 12
A19: Oficina de Control Interno | B19: 50
A20: Oficina Asesora de Planeación | B20: 30
A21: Grupo de Trabajo de Estudios Económicos | B21: 37
A22: Grupo de Trabajo de Asuntos Internacionales | B22: 38
A23: Oficina de Servicios al Consumidor y de Apoyo Empresarial | B23: 70
A24: Grupo de Atención al Ciudadano | B24: 72
A25: Grupo de Formación | B25: 71
A26: Grupo de Comunicación | B26: 73
A27: Oficina de Tecnología e Informática | B27: 20
A28: Secretaría General | B28: 100
A29: Grupo de Trabajo de Administración de Personal | B29: 111
A30: Grupo de Trabajo de Desarrollo del Talento Humano | B30: 117
A31: Grupo de Trabajo de Control Disciplinario Interno | B31: 103
A32: Grupo de Trabajo de Notificaciones y Certificaciones | B32: 104
A33: Grupo de Trabajo de Gestión Documental y Archivo | B33: 141
A34: Grupo de Trabajo de Servicios Administrativos y Recursos Físicos | B34: 142
A35: Grupo de Trabajo Contratación | B35: 105
A36: Dirección Financiera | B36: 130
A37: Delegatura para la protección del Consumidor | B37: 3000
A38: Grupo de trabajo de Apoyo a la Red Nacional de Protección al Consumidor | B38: 3003
A39: Dirección de Investigaciones de Protección al Consumidor | B39: 3100
A40: Dirección de Investigaciones de Protección de Usuarios de Servicios de Comunicaciones | B40: 3200
A41: Delegatura para la Protección de Datos | B41: 7000
A42: Delegatura para el Control y Verificación de Reglamentos Técnicos y Metrología Legal | B42: 6000
A43: Delegatura para Asuntos Jurisdiccionales | B43: 4000
A44: Delegatura para la Propiedad Industrial | B44: 2000
A45: Grupo de Trabajo de Vía Gubernativa | B45: 2003
A46: Grupo de Trabajo de Centro de Información Tecnológica y Apoyo a la Gestión de Propiedad Industrial - CIGEPI | B46: 2023
A47: Dirección de Signos Distintivos | B47: 2010
A48: Dirección de Nuevas Creaciones | B48: 2020
A49: Delegatura para la Protección de la Competencia | B49: 1000
A50: Dirección de Cámaras de Comercio | B50: 1020
A51: N/A
A52: ASESOR OAP
A53: Sandra Elizabeth Tovar
A54: Nathalia Cortes Maya
A55: Erick Salomon Chavez
A56: Mery Melguizo
A57: Carolina castillo
A58: Oficina Asesora Jurídica
A59: Grupo de Trabajo Cobro Coactivo
A60: Gestión de Trabajo Gestión Judicial
A61: Grupo de Trabajo de Regulación
A62: Oficina de Control Interno
A63: Oficina Asesora de Planeación
A64: Grupo de Trabajo de Estudios Económicos
A65: Grupo de Trabajo de Asuntos Internacionales
A66: Oficina de Servicios al Consumidor y de Apoyo Empresarial
A67: Grupo de Atención al Ciudadano
A68: Grupo de Formación
A69: Grupo de Comunicación
A70: Oficina de Tecnología e Informática
A71: Secretaría General
A72: Grupo de Trabajo de Administración de Personal
A73: Grupo de Trabajo de Desarrollo del Talento Humano
A74: Grupo de Trabajo de Control Disciplinario Interno
A75: Grupo de Trabajo de Notificaciones y Certificaciones
A76: Grupo de Trabajo de Gestión Documental y Archivo
A77: Grupo de Trabajo de Servicios Administrativos y Recursos Físicos
A78: Grupo de Trabajo Contratación
A79: Dirección Financiera
A80: Delegatura para la protección del Consumidor
A81: Grupo de trabajo de Apoyo a la Red Nacional de Protección al Consumidor
A82: Dirección de Investigaciones de Protección al Consumidor
A83: Dirección de Investigaciones de Protección de Usuarios de Servicios de Comunicaciones
A84: Delegatura para la Protección de Datos
A85: Delegatura para el Control y Verificación de Reglamentos Técnicos y Metrología Legal
A86: Delegatura para Asuntos Jurisdiccionales
A87: Delegatura para la Propiedad Industrial
A88: Grupo de Trabajo de Vía Gubernativa
A89: Grupo de Trabajo de Centro de Información Tecnológica y Apoyo a la Gestión de Propiedad Industrial - CIGEPI
A90: Dirección de Signos Distintivos
A91: Dirección de Nuevas Creaciones
A92: Delegatura para la Protección de la Competencia
A93: Dirección de Cámaras de Comercio
A98: Objetivos Estratégicos | B98: Estrategias
A99: Fortalecer los servicios de formación y divulgación de los derechos y deberes de ciudadanos y empresarios. | B99: Mantener el carácter técnico de la Entidad y su alineación con el PND y los estándares internacionales
A100: Adoptar las mejores prácticas en materia de participación y servicio al ciudadano. | B100: Diseñar e implementar una estrategia que fortalezca la analítica de datos institucional para la toma de decisiones y la prestación de servicios
A101: Afianzar el modelo de Empresa Familiarmente Responsable | B101: Establecer alianzas para la cooperación con comunidades académicas
A102: Fortalecer los programas de fomento de la propiedad industrial que promuevan la consolidación de estos derechos como activos empresariales y el uso de la información contenida en los documentos de patentes como base para nuevos desarrollos. | B102: Analizar la presencia institucional en las regiones del país
A103: Fortalecer los programas de prevención en materia de infracciones al estatuto del consumidor, protección de datos personales y el régimen de libre competencia económica, sin perjuicio de los procesos y actuaciones sancionatorias. | B103: Diversificar los canales de atención a las regiones, para fortalecer la cobertura nacional de los servicios de la Entidad
A104: Fortalecer procesos de analítica institucional para la toma de decisiones | B104: Gestionar convenios de capacitación
A105: Generar la cultura de gestión del conocimiento y la innovación | B105: Desplegar toda la capacidad técnica y tecnológica de la Entidad para ponerla al servicio de los usuarios internos y externos
A106: Implementar las mejores prácticas en materia de gestión documental | B106: Establecer programas de oferta de los servicios de la SIC enfocados a la economía social, turismo y reindustrialización con enfoque en cobertura nacional
A107: Mejorar la eficiencia en el gasto público | B107: Potenciar el reconocimiento de la SIC a nivel Internacional y Nacional
A108: Mejorar la infraestructura, uso y aprovechamiento de las tecnologías de la información. | B108: Mejorar las herramientas tecnológicas de la Entidad
A109: Mejorar la oportunidad y calidad en la atención de trámites y servicios dirigidos a usuarios, empresarios, ciudadanos y demás grupos de interés a través de la implementación de herramientas tecnológicas. | B109: Implementar metodologías para la aplicación de buenas prácticas internacionales en el contexto nacional
A110: N/A | B110: Ampliar la oferta Institucional de formación a niños, niñas, adolescentes y jóvenes
B111: Mejorar la atención y nuestro relacionamiento con los usuarios para consolidar la oferta institucional de servicios con enfoque en las regiones más apartadas del país
B112: Incrementar las actividades de difusión y pedagogía en el marco de las funciones de la SIC, para empoderar a usuarios y consumidores.
B113: Adelantar las acciones necesarias con los organismos competentes para ampliar la planta de personal y actualizar sus funciones, perfiles y estructura
A114: INSUMOS | B114: Implementar estrategias para diversificar los canales de atención y conversatorios regionales, enfocados en ciudadanos vulnerables de otras regiones del país
A115: 1-Datos principales del Programa de Gobierno | B115: Aumentar la asignación presupuestal para mejorar, cambiar o actualizar el sistema de trámites de la entidad
A116: 2-Analítica Institucional - Estadísticas | B116: Aumentar la presencia institucional con la población vulnerable
A117: 3-Sistema Estadistico Nacional - Indicares Relevantes | B117: Aprovechar la capacidad técnica de la SIC para aumentar su posicionamiento en medio de nuevas orientaciones Políticas
A118: 4-Caracterización Grupos de Valor | B118: Fortalecer e implementar herramientas tecnológicas para identificar y atender las nuevas demandas que están surgiendo en la ciudadanía
A119: 5-CONPES | B119: Optimizar los recursos presupuestales de la SIC, procurando una distribución eficiente en el marco de las políticas de austeridad del Gobierno Nacional
A120: 6-Plan Estratégico de Tecnologías de la Información | B120: Preparar la capacidad tecnológica de la Entidad frente a un probable incremento en la demanda de los servicios de la SIC
A121: 7-Ejecución Presupuestal 2022 | B121: Incentivar a los empresarios en la implementación de estrategias preventivas para la protección de los consumidores
A122: 8-Modelo Integrado de Planeación y Gestión | B122: Diseñar estrategias dirigidas a aumentar la confianza y posicionamiento los grupos de interés
A123: 9-Gestión de riesgos | B123: Fortalecer la capacidad de procesamiento de tramites a partir de softwares de fabrica externos
A124: 10-Indicadores | B124: Asignar de manera eficiente el capital humano a la demanda de servicios de acuerdo con las necesidades crecientes, objetivos y metas de la entidad
A125: 11-Producto no conforme | B125: Fortalecer al talento humano en el conocimiento de cada una de las funciones que ejercen las áreas de la entidad
A126: 12-Planes de mejoramiento | B126: Establecer programas preventivos dentro de la gama de servicios que presta la entidad
A127: 13-Experiencia SIC | B127: N/A
A128: 14-PQRS
A129: 15-Resultados de la encuesta trámites 2022
A130: 16-TrÁmites y OPAS
A131: 17-Rendición de cuentas e inrome del congreso
A132: 18-Documentación
A133: 19-N/A
A137: Fuente de Financiación
A138: 1» Fortalecimiento de la atención y promoción de trámites y servicios en el marco del sistema de propiedad industrial a nivel nacional
A139: 2» Fortalecimiento de la función de inspección, control y vigilancia de la superintendencia de industria y comercio en el marco del subsistema nacional de calidad, el régimen de control de precios y el sector valuatorio a nivel nacional
A140: 3»Fortalecimiento de la función jurisdiccional de la superintendencia de industria y comercio a nivel nacional
A141: 4»Fortalecimiento de la protección de datos personales a nivel nacional
A142: 5»Fortalecimiento del régimen de protección de la libre competencia económica en los mercados a nivel nacional
A143: 6»Fortalecimiento del sistema de atención al ciudadano de la superintendencia de industria y comercio a nivel nacional
A144: 7»Incremento de la cobertura de los servicios de la red nacional de protección al consumidor en el territorio nacional
A145: 8» Mejoramiento de los sistemas de información y servicios tecnológicos de la superintendencia de industria y comercio en el territorio nacional
A146: 9» Mejoramiento en la calidad de la gestión estratégica de la superintendencia de industria y comercio a nivel nacional
A147: 10» Mejoramiento en la ejecución de las funciones asignadas en materia de protección al consumidor a nivel nacional
A148: 11» Funcionamiento
A149: N/A
A152: MIPG
A153: 1. Planeación Institucional
A154: 2. Gestión presupuestal y eficiencia del gasto público
A155: 3. Compras y Contratación Pública
A156: 4. Talento humano
A157: 5. Integridad
A158: 6. Transparencia, acceso a la información pública y lucha contra la corrupción
A159: 7. Fortalecimiento organizacional y simplificación de procesos
A160: 8. Servicio al ciudadano
A161: 9. Participación ciudadana en la gestión pública
A162: 10. Racionalización de trámites
A163: 11.Gobierno digital
A164: 12. Seguridad digital
A165: 13.Defensa jurídica
A166: 14. Mejora normativa
A167: 15.Gestión del conocimiento y la innovación
A168: 16.Gestión documental
A169: 17.Gestión de la información estadística
A170: 18. Seguimiento y evaluación del desempeño institucional
A171: 19. Control interno
A172: N/A
A182: Áreas Responsables
A183: ="»"&B183&"-"&C183 -> »10-Oficina Asesora Jurídica | B183: 10 | C183: Oficina Asesora Jurídica
A184: ="»"&B184&"-"&C184 -> »11-Grupo de Trabajo Cobro Coactivo | B184: 11 | C184: Grupo de Trabajo Cobro Coactivo
A185: »12-Grupo de Trabajo de Regulación | B185: 12 | C185: Grupo de Trabajo de Regulación
A186: »20-Oficina de Tecnología e Informática | B186: 20 | C186: Oficina de Tecnología e Informática
A187: »30-Oficina Asesora de Planeación | B187: 30 | C187: Oficina Asesora de Planeación
A188: »37-Grupo de Trabajo de Estudios Económicos | B188: 37 | C188: Grupo de Trabajo de Estudios Económicos
A189: »38-Grupo de Trabajo de Asuntos Internacionales | B189: 38 | C189: Grupo de Trabajo de Asuntos Internacionales
A190: »50-Oficina de Control Interno | B190: 50 | C190: Oficina de Control Interno
A191: »60-Grupo de Trabajo Gestión Judicial | B191: 60 | C191: Grupo de Trabajo Gestión Judicial
A192: »71-Grupo de Formación | B192: 71 | C192: Grupo de Formación
A193: »72-Grupo de Atención al Ciudadano | B193: 72 | C193: Grupo de Atención al Ciudadano
A194: »73-Grupo de Comunicación | B194: 73 | C194: Grupo de Comunicación
A195: »100-Secretaría General | B195: 100 | C195: Secretaría General
A196: »103-Grupo de Trabajo de Control Disciplinario Interno | B196: 103 | C196: Grupo de Trabajo de Control Disciplinario Interno
A197: »104-Grupo de Trabajo de Notificaciones y Certificaciones | B197: 104 | C197: Grupo de Trabajo de Notificaciones y Certificaciones
A198: »105-Grupo de Trabajo Contratación | B198: 105 | C198: Grupo de Trabajo Contratación
A199: »111-Grupo de Trabajo de Administración de Personal | B199: 111 | C199: Grupo de Trabajo de Administración de Personal
A200: »117-Grupo de Trabajo de Desarrollo del Talento Humano | B200: 117 | C200: Grupo de Trabajo de Desarrollo del Talento Humano
A201: »130-Dirección Financiera | B201: 130 | C201: Dirección Financiera
A202: »141-Grupo de Trabajo de Gestión Documental y Archivo | B202: 141 | C202: Grupo de Trabajo de Gestión Documental y Archivo
A203: »142-Grupo de Trabajo de Servicios Administrativos y Recursos Físicos | B203: 142 | C203: Grupo de Trabajo de Servicios Administrativos y Recursos Físicos
A204: »1000-Delegatura para la Protección de la Competencia | B204: 1000 | C204: Delegatura para la Protección de la Competencia
A205: »2000-Delegatura para la Propiedad Industrial | B205: 2000 | C205: Delegatura para la Propiedad Industrial
A206: »2010-Dirección de Signos Distintivos | B206: 2010 | C206: Dirección de Signos Distintivos
A207: »2020-Dirección de Nuevas Creaciones | B207: 2020 | C207: Dirección de Nuevas Creaciones
A208: »2023-Grupo de Trabajo de Centro de Información Tecnológica y Apoyo a la Gestión de Propiedad Industrial - CIGEPI | B208: 2023 | C208: Grupo de Trabajo de Centro de Información Tecnológica y Apoyo a la Gestión de Propiedad Industrial - CIGEPI
A209: »3000-Delegatura para la protección del Consumidor | B209: 3000 | C209: Delegatura para la protección del Consumidor
A210: »3003-Grupo de trabajo de Apoyo a la Red Nacional de Protección al Consumidor | B210: 3003 | C210: Grupo de trabajo de Apoyo a la Red Nacional de Protección al Consumidor
A211: »3100-Dirección de Investigaciones de Protección al Consumidor | B211: 3100 | C211: Dirección de Investigaciones de Protección al Consumidor
A212: »3200-Dirección de Investigaciones de Protección de Usuarios de Servicios de Comunicaciones | B212: 3200 | C212: Dirección de Investigaciones de Protección de Usuarios de Servicios de Comunicaciones
A213: »4000-Delegatura para Asuntos Jurisdiccionales | B213: 4000 | C213: Delegatura para Asuntos Jurisdiccionales
A214: »6000-Delegatura para el Control y Verificación de Reglamentos Técnicos y Metrología Legal | B214: 6000 | C214: Delegatura para el Control y Verificación de Reglamentos Técnicos y Metrología Legal
A215: »7000-Delegatura para la Protección de Datos | B215: 7000 | C215: Delegatura para la Protección de Datos
A222: Asociación a Planes
A223: 1- Plan Anual de Adquisiciones | B223: 1 | C223: =" "&B223&"-"&A223 -> 1- 1- Plan Anual de Adquisiciones
A224: 2- Gasto público | B224: 2 | C224: =" "&B224&"-"&A224 -> 2- 2- Gasto público
A225: 3- Plan Estratégico de TH (PETH) | B225: 3 | C225: 3- 3- Plan Estratégico de TH (PETH)
A226: 4- Vacantes | B226: 4 | C226: 4- 4- Vacantes
... 21 more rows
